Cogmind - Beta 12 @@@ ROGUE MODE // 2023.10.12 @ 23:07:04 Player: Finestep Result: Self-destructed Performance ------------- Evolutions (3) 1500 Regions Visited (6) 1200 Robots Destroyed (154) 770 Value Destroyed (4490) 4490 Prototype IDs (26) 520 Alien Tech Used (0) 0 Bonus (1322) 1322 TOTAL SCORE: 9802 Bonus ------- High Alert Combat Kills 1060 Aligned with FarCom 300 Friendly Fire -38 Cogmind --------- Core Integrity 197/700 Matter 212/300 Energy 150/150 System Corruption 8% Temperature Cool (0) Movement Flying (120) Ox1 Location -7/Factory Parts ------- > --- POWER (1) -------- Micro Nuclear Core > --- PROPULSION (4) --- Xenon Bombardment Thruster > --- UTILITY (6) ------ Machine Analyzer Transport Network Coupler Core Analyzer Hacking Suite System Shield > --- WEAPON (2) ------- Greatsword > --- INVENTORY (5) ---- Micro Nuclear Core Melee Analysis Suite Graphene Brace Long-range Tractor Beam Improved Grenade Launcher Peak State ------------ > --- POWER ------------ Micro Nuclear Core > --- PROPULSION ------- Xenon Bombardment Thruster Xenon Bombardment Thruster Xenon Bombardment Thruster Xenon Bombardment Thruster > --- UTILITY ---------- Machine Analyzer Transport Network Coupler Core Analyzer Improved Medium Armor Plating Hacking Suite System Shield > --- WEAPON ----------- Greatsword > --- INVENTORY -------- Micro Nuclear Core Melee Analysis Suite Graphene Brace Long-range Tractor Beam Improved Grenade Launcher [Rating: 48] Favorites ----------- Power Light Nuclear Core Engine Ion Engine Power Core Light Nuclear Core Propulsion Light Treads Treads Light Treads Leg Improved Titanium Leg Wheel Armored Wheel Flight Unit Xenon Bombardment Thruster Utility Large Storage Unit Device Structural Scanner Storage Large Storage Unit Processor Transport Network Coupler Hackware Hacking Suite Protection Reactive Plating Weapon Heavy Assault Rifle Energy Cannon Advanced Beam Cannon Ballistic Gun Heavy Assault Rifle Ballistic Cannon Light Cannon Launcher Improved Grenade Launcher Special Weapon Mining Laser Impact Weapon Power Maul Slashing Weapon Greatsword Build | -11 -10 -10 -10 -9 -8 -7 ------- Run | Jun Mat Min Exi Min Mat Fac Slots Evolved 6 | . . . . . 4 2 Power . | . . . . . . . Propulsion 2 | . . . . . 1 1 Utility 4 | . . . . . 3 1 Weapon . | . . . . . . . Parts Attached 151 | 8 18 7 2 7 58 51 Power 16 | 2 1 1 . 1 5 6 Engine 7 | 2 1 . . . 1 3 Core 9 | . . 1 . 1 4 3 Reactor . | . . . . . . . Propulsion 38 | 3 6 2 1 1 14 11 Treads 11 | . 6 1 1 1 2 . Leg 12 | 2 . . . . 9 1 Wheel 10 | 1 . 1 . . 3 5 Hover . | . . . . . . . Flight 5 | . . . . . . 5 Utility 41 | 1 3 . . 2 17 18 Device 12 | . 1 . . 1 5 5 Storage 6 | 1 2 . . . 3 . Processor 6 | . . . . . 2 4 Hackware 2 | . . . . . . 2 Protection 15 | . . . . 1 7 7 Artifact . | . . . . . . . Weapon 56 | 2 8 4 1 3 22 16 Energy Gun . | . . . . . . . Energy Cannon 8 | . . . . . 7 1 Ballistic Gun 23 | 2 7 3 . 2 4 5 Ballistic Cannon 8 | . . . 1 . 3 4 Launcher 8 | . . . . 1 5 2 Special Weapon 2 | . 1 1 . . . . Impact Weapon 3 | . . . . . 3 . Slashing Weapon 4 | . . . . . . 4 Piercing Weapon . | . . . . . . . Special Melee Weapon . | . . . . . . . Unidentified Prototypes 3 | . . . . . 1 2 Parts Lost 38 | . 1 4 . . 17 16 Power 7 | . . 1 . . 4 2 Propulsion 14 | . . 2 . . 4 8 Utility 8 | . . . . . 5 3 Weapon 9 | . 1 1 . . 4 3 Highest Loss Streak 9 | . 1 3 . . 7 9 To Critical Strikes . | . . . . . . . Average Slot Usage (%) 95 | . 96 96 100 100 96 91 Engine 3 | . 13 2 . . 2 2 Core 6 | . . 10 14 14 5 4 Treads 9 | . 20 16 14 26 2 3 Leg 9 | . 7 . . . 19 4 Wheel 6 | . . 9 14 1 3 10 Flight 1 | . . . . . . 7 Device 8 | . 12 14 14 4 8 5 Storage 10 | . 14 14 14 14 9 5 Processor 10 | . . . . . 13 22 Protection 6 | . . . . 9 12 5 Energy Cannon 2 | . . . . . 5 1 Ballistic Gun 13 | . 27 27 27 27 4 1 Ballistic Cannon 3 | . . . . . 6 6 Naked Turns . | . . . . . . . Heaviest Build 68 | 14 30 32 32 34 68 57 Greatest Support 60 | 20 40 40 16 40 60 36 Greatest Overweight (x) 4 | 2 1 1 1 1 4 4 Average Overweight (x) . | . . . 1 . . . Largest Inventory Capacity 20 | 8 15 15 15 15 20 15 Average Capacity 14 | 7 13 15 15 15 15 12 Most Carried 16 | 7 15 15 15 15 16 15 Average Carried 13 | 4 11 14 14 15 14 11 Final Capacity 15 | 8 15 15 15 15 15 5 Final Carried 15 | 7 14 15 15 15 15 5 Class Distribution -------------------- 78% | Mutant 14% | Scavenger-Mutant 4% | Hacker-Sprinter Dominant Class ---------------- Mutant | -10/Materials Mutant | -10/Mines Mutant | -10/Exiles Mutant | -9/Mines Mutant | -8/Materials Mutant | -7/Factory Resources | -11 -10 -10 -10 -9 -8 -7 ----------- Run | Jun Mat Min Exi Min Mat Fac Matter Collected 4044 | 364 368 363 88 260 1222 1379 Remotely 165 | . . . . . . 165 Salvage Created 5780 | 175 446 222 . 394 2463 2080 Parts 304 | 10 26 10 . 21 129 108 Haulers Intercepted 12 | . 1 . . . 5 6 Recyclers Shooed 6 | . 1 2 . . 2 1 Parts Field Recycled . | . . . . . . . Retrieved Matter . | . . . . . . . Parts Self-Destructed . | . . . . . . . Prevented . | . . . . . . . Kills | -11 -10 -10 -10 -9 -8 -7 ------- Run | Jun Mat Min Exi Min Mat Fac Combat Hostiles Destroyed 91 | . 6 4 . 11 43 27 Guns 31 | . 6 4 . 8 7 6 Cannons 32 | . . . . . 22 10 AOE 27 | . . . . 3 13 11 Classes Destroyed 17 | 2 4 1 . 2 6 2 Worker 7 | . 1 . . 1 1 4 Builder 5 | . . . . . 2 3 Tunneler 8 | 4 . . . . 1 3 Hauler 12 | . 1 . . . 5 6 Recycler 18 | 1 1 2 . . 6 8 Mechanic 3 | . . . . . 1 2 Operator 3 | . . . . . 2 1 Watcher 7 | . 2 . . . 3 2 Swarmer 14 | . . 3 . 3 8 . Grunt 52 | . 6 1 . 5 20 20 Brawler 6 | . . . . 2 2 2 Duelist 3 | . . . . 1 . 2 Sentry 10 | . . . . . 9 1 Specialist 1 | . . . . . . 1 Hunter 3 | . . . . . 3 . Programmer 1 | . . . . . . 1 Heavy 1 | . . . . . 1 . Best Kill Streak 9 | 4 3 3 . 4 9 7 Combat Bots Only 6 | . 3 3 . 3 5 6 Max Kills in Single Turn 5 | 1 1 1 . 3 5 4 Gunslinging . | . . . . . . . Exploded 4 | . . . . 3 4 3 Melee . | . . . . . . . Uniques/NPCs Destroyed . | . . . . . . . Combat | -11 -10 -10 -10 -9 -8 -7 -------- Run | Jun Mat Min Exi Min Mat Fac Damage Taken 7099 | . 519 329 . 289 3120 2842 Core 1171 | . 68 81 . 27 492 503 Absorbed by Shields 19 | . . . . . . 19 Redirected to Shielding 60 | . . . . . 60 . Core Remaining (%) 46 | 100 . . . 29 10 . Volleys Fired 430 | 14 42 27 1 29 210 107 Largest 2 | 2 2 2 1 2 2 2 Hottest 117 | 40 100 100 35 46 112 117 Shots Fired 711 | 28 82 51 1 57 313 179 Gun 391 | 28 81 49 . 56 107 70 Cannon 292 | . . . 1 . 192 99 Launcher 25 | . . . . 1 14 10 Special 3 | . 1 2 . . . . Kinetic 532 | 28 81 49 1 56 157 160 Thermal 137 | . 1 2 . . 133 1 Explosive 25 | . . . . 1 14 10 Electromagnetic 17 | . . . . . 9 8 Robot Hit Streak 23 | 12 7 5 . 6 15 23 Robot Miss Streak 5 | 2 4 3 . 4 5 4 Penetration Max . | . . . . . . . Secondary Targets 4 | . . . . 1 3 . Max Gunslinging Chain 1 | . . . . 1 1 . Shots Hit Robots 476 | 20 47 27 . 33 193 156 Core Hits 262 | 5 18 12 . 17 103 107 Critical Kills . | . . . . . . . Critical Parts Destroyed 3 | 1 . . . . 1 1 Critical Strikes 14 | 1 . . . . 2 11 Destroy 3 | 1 . . . . 1 1 Blast 10 | . . . . . 1 9 Corrupt 1 | . . . . . . 1 Melee Attacks 44 | . . . . . 9 35 Impact 9 | . . . . . 9 . Slashing 35 | . . . . . . 35 Piercing . | . . . . . . . Sneak Attacks 14 | . . . . . . 14 Combat Hostiles . | . . . . . . . Follow-up Attacks . | . . . . . . . Damage Inflicted 13880 | 260 599 426 . 703 4866 7026 Guns 4096 | 260 599 426 . 496 1058 1257 Cannons 4219 | . . . . . 2484 1735 Explosions 3570 | . . . . 206 1208 2156 Melee 1971 | . . . . . 93 1878 Ramming 24 | . . . . 1 23 . Kinetic 6389 | 260 599 426 . 496 1789 2819 Thermal 2323 | . . . . . 1570 753 Explosive 2672 | . . . . 206 1208 1258 Electromagnetic 501 | . . . . . 183 318 Impact 93 | . . . . . 93 . Slashing 1878 | . . . . . . 1878 Piercing . | . . . . . . . Highest Corruption 8 | . . . . . 1 8 Average Corruption 2 | . . . . . 1 7 Corruption Purged . | . . . . . . . Corruption Blocked . | . . . . . . . Effects 32 | . . . . . 13 19 Message Errors 2 | . . . . . . 2 Matter Fused 8 | . . . . . 3 5 Heat Flow Errors 6 | . . . . . 2 4 Energy Discharges 6 | . . . . . 4 2 Parts Rejected 1 | . . . . . . 1 Parts Fused 1 | . . . . . . 1 Data Loss (minor) 5 | . . . . . 3 2 Data Loss (major) 1 | . . . . . . 1 Alerts 1 | . . . . . 1 . Weapon Failures 1 | . . . . . . 1 Overload Shots . | . . . . . . . Overflow Damage 924 | . . . . . 66 858 Projectiles 77 | . . . . . 14 63 Explosions 313 | . . . . . 47 266 Melee 534 | . . . . . 5 529 Knockbacks 44 | . . . . . 19 25 Impact 1 | . . . . . 1 . Kinetic 40 | . . . . . 15 25 Secondary 3 | . . . . . 3 . Self-Inflicted Damage 253 | . . . . . 19 234 Shots 4 | . . . . . 1 3 Rammed 1 | . . . . 1 . . Targets Rammed 2 | . . . . 1 1 . Kicked 1 | . . . . . 1 . Crushed . | . . . . . . . Highest Temperature 337 | . 20 56 . 59 196 337 Average Temperature 71 | . 8 12 . 25 69 94 Received Heat Transfer 2976 | . 306 87 . 144 1350 1089 Effects 2 | . . . . . . 2 Interference 2 | . . . . . . 2 Siege Activations . | . . . . . . . Robots Corrupted . | . . . . . . . Combat Hostiles . | . . . . . . . Parts Fried 1 | . . . . . 1 . Impact Corruptions 1 | . . . . . 1 . Robots Melted . | . . . . . . . Combat Hostiles . | . . . . . . . Parts Melted 2 | . . . . . 2 . Heat Transferred 3212 | . . . . . 2675 537 Parts Sabotaged . | . . . . . . . Parts Stolen . | . . . . . . . Parts Stripped . | . . . . . . . Power Chain Reactions 1 | . . . . . . 1 Missiles Intercepted . | . . . . . . . Alert | -11 -10 -10 -10 -9 -8 -7 ------- Run | Jun Mat Min Exi Min Mat Fac Peak Influence 1734 | 25 166 62 . 208 928 1734 Initial 422 | . 16 . . . 29 422 Average 407 | 8 79 39 . 72 501 776 Maximum Alert Level 5 | . . . . 1 3 5 Low Security (%) 45 | 100 100 100 . 97 21 . Level 1 5 | . . . . 2 12 . Level 2 26 | . . . . . 44 39 Level 3 19 | . . . . . 21 44 Level 4 3 | . . . . . . 12 Level 5 . | . . . . . . 3 High Security . | . . . . . . . Max Security . | . . . . . . . Squads Dispatched 28 | . 2 1 . . 9 16 Investigation 8 | . 2 1 . . 2 3 Extermination 3 | . . . . . . 3 Reinforcement 10 | . . . . . 5 5 Assault 3 | . . . . . 1 2 Garrison 4 | . . . . . 1 3 Intercept . | . . . . . . . Searches Triggered . | . . . . . . . Construction Impeded 3 | . . . . . 1 2 Haulers Reinforced 1 | . . . . . . 1 Active Scanning Responses . | . . . . . . . Cargo Convoy Interrupts 1 | . . . . . . 1 Stealth | -11 -10 -10 -10 -9 -8 -7 --------- Run | Jun Mat Min Exi Min Mat Fac Distress Signals 1 | . . . . . 1 . Communications Jammed . | . . . . . . . Distress Signals . | . . . . . . . Times Spotted 165 | . 12 9 . 10 68 66 Peak Tracking Total 10 | . 3 3 9 3 5 10 Tactical Retreats 18 | . . . . . 8 10 Traps | -11 -10 -10 -10 -9 -8 -7 ------- Run | Jun Mat Min Exi Min Mat Fac Traps Triggered 10 | . 5 . . . 1 4 Indirectly . | . . . . . . . Trap Hack Attempts . | . . . . . . . Triggered . | . . . . . . . Disarmed . | . . . . . . . Reprogrammed . | . . . . . . . Reused . | . . . . . . . Traps Extracted . | . . . . . . . Installed . | . . . . . . . Triggered 2 | . . 1 . . . 1 Machines | -11 -10 -10 -10 -9 -8 -7 ---------- Run | Jun Mat Min Exi Min Mat Fac Machines Disabled 34 | . . . 1 . 5 28 Max in Single Turn 6 | . . . 1 . 1 6 Garrison Access 1 | . . . . . . 1 Machines Repaired . | . . . . . . . Machines Sabotaged . | . . . . . . . Overloaded Fab Kills . | . . . . . . . Hacking | -11 -10 -10 -10 -9 -8 -7 --------- Run | Jun Mat Min Exi Min Mat Fac Machines Accessed 32 | . 9 1 2 . 9 11 Terminals 19 | . 7 . . . 7 5 Fabricators 3 | . . . . . . 3 Repair Stations 1 | . 1 . . . . . Recycling Units 4 | . 1 . . . 1 2 Scanalyzers 1 | . . . . . 1 . Garrison Access 1 | . . . . . . 1 Total Hacks 88 | . 27 1 5 . 24 31 Successful 34 | . 11 1 5 . 8 9 Failed 54 | . 16 . . . 16 22 Catastrophic 10 | . 3 . . . 4 3 Database Lockouts . | . . . . . . . Manual 51 | . 20 . 1 . 15 15 Terminals 56 | . 20 . . . 19 17 Fabricators 6 | . . . . . . 6 Repair Stations 3 | . 3 . . . . . Recycling Units 12 | . 4 . . . 3 5 Scanalyzers 2 | . . . . . 2 . Garrison Access 3 | . . . . . . 3 Terminal Hacks 15 | . 4 1 5 . 4 1 Record 4 | . . . 4 . . . Part Schematic 1 | . 1 . . . . . Robot Analysis 1 | . . . . . 1 . Open Door 1 | . . 1 . . . . Branch Access Points 2 | . 1 . . . 1 . Unreport Threat 1 | . . . . . 1 . Hauler Manifests 1 | . 1 . . . . . Zone Layout 3 | . 1 . . . 1 1 EX-Prototype ID Bank 1 | . . . 1 . . . Fabricator Hacks 3 | . . . . . . 3 Network Status 1 | . . . . . . 1 Load Schematic 1 | . . . . . . 1 Build 1 | . . . . . . 1 Repair Station Hacks 1 | . 1 . . . . . Scan Component 1 | . 1 . . . . . Recycling Unit Hacks 3 | . 1 . . . . 2 Retrieve Components 3 | . 1 . . . . 2 Scanalyzer 2 | . . . . . 2 . Insert Component 1 | . . . . . 1 . Analyze 1 | . . . . . 1 . Garrison Access Hacks 1 | . . . . . . 1 Seal Access 1 | . . . . . . 1 Unauthorized Hacks 9 | . 5 . . . 2 2 Terminals 7 | . 4 . . . 1 2 Track 3 | . 2 . . . . 1 Detonate 1 | . . . . . . 1 Operators 3 | . 2 . . . 1 . Fabricators . | . . . . . . . Repair Stations . | . . . . . . . Recycling Units 2 | . 1 . . . 1 . Tunnel 2 | . 1 . . . 1 . Scanalyzers . | . . . . . . . Garrison Access . | . . . . . . . Data Cores Recovered . | . . . . . . . Used . | . . . . . . . Hacking Detections 27 | . 8 . . . 8 11 Full Trace Events 4 | . . . . . 1 3 Feedback Events . | . . . . . . . Feedback Blocked . | . . . . . . . Robot Schematics Acquired . | . . . . . . . Robots Built . | . . . . . . . Authchips . | . . . . . . . Time . | . . . . . . . Total Robot Build Rating . | . . . . . . . Part Schematics Acquired 2 | . 1 . . . 1 . Parts Built 2 | . . . . . . 2 Authchips . | . . . . . . . Time 95 | . . . . . . 95 Total Part Build Rating 10 | . . . . . . 10 Parts Repaired . | . . . . . . . Time . | . . . . . . . Parts Recycled . | . . . . . . . Recycled Matter . | . . . . . . . Retrieved Matter . | . . . . . . . Retrieved Components 17 | . 2 . . . . 15 Parts Scanalyzed 1 | . . . . . 1 . Part Schematics Acquired 1 | . . . . . 1 . Parts Damaged . | . . . . . . . Bothacking | -11 -10 -10 -10 -9 -8 -7 ------------ Run | Jun Mat Min Exi Min Mat Fac Used RIF Installer . | . . . . . . . Robots Hacked . | . . . . . . . Non-combat . | . . . . . . . Combat . | . . . . . . . Robot Hacks Applied . | . . . . . . . Relay Couplers Released . | . . . . . . . Fabnet Peak Effective % . | . . . . . . . Robots Rewired . | . . . . . . . Allies Hacked . | . . . . . . . Hacks Repelled . | . . . . . . . Allies | -11 -10 -10 -10 -9 -8 -7 -------- Run | Jun Mat Min Exi Min Mat Fac Total Allies . | . . . . . . . Largest Group . | . . . . . . . Highest-Rated Group . | . . . . . . . Highest-Rated Ally . | . . . . . . . Total Orders . | . . . . . . . Ally Attacks . | . . . . . . . Total Damage . | . . . . . . . Kills . | . . . . . . . Allies Corrupted . | . . . . . . . Allies Melted . | . . . . . . . Intel | -11 -10 -10 -10 -9 -8 -7 ------- Run | Jun Mat Min Exi Min Mat Fac Robot Analysis Total 1 | . . . . . 1 . Derelict Logs Recovered 3 | . . 2 . 1 . . Drone Launches . | . . . . . . . Drone Recoveries . | . . . . . . . Exploration | -11 -10 -10 -10 -9 -8 -7 ------------- Run | Jun Mat Min Exi Min Mat Fac Turns Passed 6242 | 115 849 493 543 648 2202 1392 Spaces Moved 3998 | 50 437 314 467 346 1077 1307 Core 5 | 5 . . . . . . Treads 644 | . 289 44 . 311 . . Legs 960 | 34 148 . . . 778 . Wheels 1634 | 11 . 270 467 35 299 552 Hover . | . . . . . . . Flight 755 | . . . . . . 755 Fastest Speed 31 | 50 120 115 115 115 105 31 Average Speed 112 | 110 147 125 115 155 133 67 Slowest Speed 240 | 150 240 240 115 160 200 200 Overloaded Moves . | . . . . . . . Propulsion Burnouts . | . . . . . . . Robots Hopped 5 | . . . . . . 5 Cave-ins Triggered . | . . . . . . . Exploration Rate (%) 61 | 4 77 62 90 83 78 35 Regions Visited 6 Branch Regions 3 Pre-discovered Areas 4 | . 1 . 1 1 1 . Known Exits Taken 1 | . 1 . . . . . Unknown Exits Taken 5 | 1 . 1 1 1 1 . Scrap Searched 4 | . . 2 . 2 . . Spaces Dug 39 | . 1 1 . . 22 15 Terrain Destroyed 322 | . 1 2 . 16 116 187 Melee 17 | . . . . . 7 10 Projectile 25 | . 1 2 . . 7 15 AOE 280 | . . . . 16 102 162 Terrain Rammed . | . . . . . . . Walls Destroyed . | . . . . . . . Machines Disabled . | . . . . . . . Actions | -11 -10 -10 -10 -9 -8 -7 --------- Run | Jun Mat Min Exi Min Mat Fac Total 4951 | 77 555 357 473 398 1504 1587 Wait 173 | . 32 . . 9 103 29 Move 3984 | 49 436 313 466 345 1076 1299 Hop 3 | . . . . . . 3 Pick Up 72 | 6 16 7 2 2 23 16 Fast Attach 69 | 6 11 1 . 3 20 28 Attach 39 | . 1 4 1 . 16 17 Detach 3 | . . . . . . 3 Swap 43 | 2 6 2 1 4 22 6 Drop 82 | . 11 3 2 5 24 37 Fire 430 | 14 42 27 1 29 210 107 Melee 44 | . . . . . 9 35 Ram . | . . . . . . . Kick 1 | . . . . . 1 . Crush 1 | . . . . 1 . . Escape Stasis 7 | . . . . . . 7 Rewire . | . . . . . . . Trap . | . . . . . . . Miscellaneous . | . . . . . . . Route ------- -11/Junkyard -10/Materials (discovered 4 exits: [*Mat x3] / *Min) -10/Mines (discovered 2 exits: [*Mat] / *Exi) -10/Exiles -9/Mines -8/Materials (discovered 3 exits: *Fac x3) -7/Factory (discovered 1 exit: *Fac) History --------- Turn | Location | Event 23 | -11/Junkyard | Discovered new exit (range 16) 116 | -11/Junkyard | Entered Materials 251 | -10/Materials | Discovered new exit (range 5) 314 | -10/Materials | Build established: Mutant 492 | -10/Materials | Identified exit to Mines 514 | -10/Materials | Discovered new exit (range 5) 702 | -10/Materials | Discovered new exit (range 15) 965 | -10/Materials | Entered Mines 990 | -10/Mines | Met a Derelict bent on vengeance 1006 | -10/Mines | Discovered new exit (range 5) 1075 | -10/Mines | Lost 3 parts (1p1n1w) 1077 | -10/Mines | Met a Derelict shopkeep closing up shop 1217 | -10/Mines | Learned Materials interactive machine intel 1369 | -10/Mines | Learned Materials stockpile data 1400 | -10/Mines | Core integrity fell below 50% 1452 | -10/Mines | Deemed a non-threat by the Exiles lab entrance 1452 | -10/Mines | Discovered new exit (range 6) 1458 | -10/Mines | Entered Exiles 1493 | -10/Exiles | Met 8R-AWN 1510 | -10/Exiles | Met EX-HEX 1577 | -10/Exiles | Met EX-DEC 1594 | -10/Exiles | Visited The Gauntlet 1721 | -10/Exiles | Learned location of Zion (-7) 1739 | -10/Exiles | Met EX-BIN 1755 | -10/Exiles | Aligned with FarCom system 1757 | -10/Exiles | Given EX-Vault access code 1783 | -10/Exiles | Opened EX-Vault 1811 | -10/Exiles | Warned to stay clear of 0b10 Research branches 1980 | -10/Exiles | Attacked by the Exiles 1992 | -10/Exiles | Discovered new exit (range 10) 2001 | -10/Exiles | Entered Mines 2253 | -9/Mines | Received a Rocket Launcher from a helpful Derelict 2630 | -9/Mines | Discovered new exit (range 9) 2649 | -9/Mines | Entered Materials 2649 | -8/Materials | Evolved 4 slots: Propulsion x1, Utility x3 2651 | -8/Materials | Loaded intel: 18 interactive machine locations 2756 | -8/Materials | Lost 5 parts (1p1n1u2w) 3596 | -8/Materials | Discovered new exit (range 11) 4093 | -8/Materials | Discovered new exit (range 5) 4249 | -8/Materials | First assault squad dispatched 4251 | -8/Materials | Core integrity fell below 50% 4453 | -8/Materials | Garrison activated, responded to threat 4623 | -8/Materials | Core integrity fell below 20% 4663 | -8/Materials | Lost 7 parts (1p1n3u2w) 4753 | -8/Materials | Discovered new exit (range 14) 4851 | -8/Materials | Entered Factory 4851 | -7/Factory | Evolved 2 slots: Propulsion x1, Utility x1 4881 | -7/Factory | Discovered new exit (range 12) 4918 | -7/Factory | Build established: Scavenger-Mutant 4925 | -7/Factory | Identified exit to Factory 5251 | -7/Factory | First assault squad dispatched 5358 | -7/Factory | Garrison activated, responded to threat 5471 | -7/Factory | Build established: Mutant 5787 | -7/Factory | Cargo convoy interrupted 5850 | -7/Factory | Lost 9 parts (1p4n2u2w) 6048 | -7/Factory | Core integrity fell below 50% 6141 | -7/Factory | Fabricated Lgt. Fission Core? 6225 | -7/Factory | Lost 3 parts (3n) 6243 | -7/Factory | Self-destructed Last Messages --------------- 06192_ Destroyed Carbon-fiber Leg. 06193_ K-01 Serf collects debris. 06194_ Xenon Bombardment Thruster destroyed. 06194_ G-50 Soldier destroyed. 06195_ The unstable cave ceiling collapses. 06196_ Acquired Greatsword. 06197_ The unstable cave ceiling collapses. 06197_ K-01 Serf collects debris. 06201_ The unstable cave ceiling collapses. 06216_ ALERT: Suspicious intruders detected, dispatching Specialist reinforcements to area. 06220_ The unstable cave ceiling collapses. 06236_ ALERT: Suspicious intruders detected, dispatching Specialist reinforcements to area. 06240_ Power Conduit explodes. 06240_ X-67 Chaingunner destroyed. 06240_ Power Conduit explodes. 06240_ Imp. Medium Armor Plating destroyed. 06240_ Destroyed Imp. Medium Armor Plating. 06240_ Power Conduit explodes. Map ----- +----------------------------------------------------+ | ???????????## "# | | ???????????# "" | | ???????????# # | | ???????????# [ " | | ???????????# % # | | ??????????## " ^ | | ??????????? " | | ???????????? # | | ????????####?# # "" | | ????????# ## ### # " | | ????????# ! ] = | | ???####+# ] | | ???# ] | | ???# H | | ???# | | ???# | | ???# | | ???# | | ???# ^ ! T | | ???# " | | ???# g | | ???# | | ??## ;;; Y##;; ""###### | | ??#; ; !; ""####?# | | ??#;x; # + # | | ??#; @ [ # # "" # | | ??#;! #?# "" # | | ??## % #?+ """ + | | ???#= #?# """ # | | ???# #?# """ # | | ???# # #?# ?# | | ???# # #?# ?# | | ???# # #?########+ | | ???# ###;; ;;;####### | | ???# #?? ## ; # """ | | ???# #??##?# ; # """ | | ???# #??????##### !# """ | | ???# #??????????# !! # | | ???# #??????????# !! # """ | | ??## ##?????????#! ! # """ | | ??# ########### # """ | | ??# H *! !+= # | | ??# ##################+######+ | | ####+#####??????????# | | # T #??????????# | | # ! #??????????# | | # #??????????# | | # #??????????# | | # ! #??????????####+######+ | | # *#?????????????????# | +----------------------------------------------------+ Best States ------------- Heat Dissipation 61 Coolant Potential 50 Energy Generation 16 Energy Capacity 290 Matter Stores 300 Matter Capacity 300 Sight Range 16 Terrain Scan Density 10 Armor Coverage 300 Resistance: KI 20 Resistance: EM 15 Core Shielding 20 Propulsion Shielding 33 Weapon Cycling 15 Evasion (%) 63 Targeting Accuracy 8 Core Analysis 6 Armor Integrity Analysis 30 Recoil Reduction 2 Particle Charging 15 Offensive Hacking 10 Defensive Hacking 10 Item Schematics ----------------- Med. Storage Unit | -10/Materials | Hacked Lgt. Fission Core | -8/Materials | Scanalyzed Robot Schematics ------------------ None Fabricated ------------ Lgt. Fission Core | x2 | -7/Factory Alien Tech Used ----------------- None Achievements -------------- None Challenges ------------ None Game ------ Seed DeepRiotCannon Manual? 0 Play Time 00:51:04 Cumulative 663.1 hours Start 2023.10.12 @ 22:16:43 End 2023.10.12 @ 23:07:04 Sessions 1 Manual Loads 0 Difficulty Rogue Special Mode None Game No. 412 Rogue 412 Adventurer 0 Explorer 0 Win Type - Total 9 Types 6/0/1/1/1/0/0/0/0 Lore% 87 Gallery% 90 Achievement% 74 Wizard Run 0 Options --------- ASCII 0 Keyboard 0 Movement Mouse Keybinds 1 Fullscreen 2 Font 24/Smallcaps Map View 68x50 Tactical HUD 1 Map Filters NONE Filters NONE Steam 1 RUN: 6e0e0c0f-0b71-4d59-8e7d-da36b0c61e49